Cogmind - Beta 14 @@@ ROGUE MODE // 2025.03.11 @ 00:08:53 Player: SovietPaperclip Result: Self-destructed Performance ------------- Evolutions (1) 500 Regions Visited (3) 600 Robots Destroyed (15) 75 Value Destroyed (314) 314 Prototype IDs (0) 0 Alien Tech Used (0) 0 Bonus (0) 0 TOTAL SCORE: 1489 Bonus ------- None Cogmind --------- Core Integrity 368/400 Matter 230/300 Energy 250/250 System Corruption 0% Temperature Cool (0) Movement Treading (160) Location -9/Materials Parts ------- > --- POWER (1) -------- Ion Engine > --- PROPULSION (3) --- Light Treads Light Treads > --- UTILITY (3) ------ Large Storage Unit Seismic Detector > --- WEAPON (2) ------- EM Pulse Gun Grenade Launcher > --- INVENTORY (15) --- Light Ion Engine Light Treads Improved Terrain Scanner Hacking Suite EM Pulse Gun Assault Rifle Light Assault Rifle Autogun Rocket Launcher Hammer Peak State ------------ > --- POWER ------------ Ion Engine > --- PROPULSION ------- Light Treads Light Treads > --- UTILITY ---------- Large Storage Unit Seismic Detector > --- WEAPON ----------- EM Pulse Gun EM Pulse Gun > --- INVENTORY -------- Light Ion Engine Light Treads Improved Terrain Scanner Hacking Suite Grenade Launcher Hammer [Rating: 8] Favorites ----------- Power Ion Engine Engine Ion Engine Propulsion Light Treads Treads Light Treads Utility Seismic Detector Device Seismic Detector Storage Large Storage Unit Weapon EM Pulse Gun Energy Gun EM Pulse Gun Launcher Grenade Launcher Impact Weapon Hammer Build | -11 -10 -10 -9 ------- Run | Yrd Mat Min Mat Slots Evolved 2 | . . . 2 Power . | . . . . Propulsion 1 | . . . 1 Utility 1 | . . . 1 Weapon . | . . . . Parts Attached 12 | 8 2 1 1 Power 2 | 2 . . . Engine 2 | 2 . . . Core . | . . . . Reactor . | . . . . Propulsion 2 | 2 . . . Treads 2 | 2 . . . Leg . | . . . . Wheel . | . . . . Hover . | . . . . Flight . | . . . . Utility 3 | 2 1 . . Device 1 | 1 . . . Storage 2 | 1 1 . . Processor . | . . . . Hackware . | . . . . Protection . | . . . . Artifact . | . . . . Weapon 5 | 2 1 1 1 Energy Gun 3 | 2 . 1 . Energy Cannon . | . . . . Ballistic Gun . | . . . . Ballistic Cannon . | . . . . Launcher 1 | . . . 1 Special Weapon . | . . . . Impact Weapon 1 | . 1 . . Slashing Weapon . | . . . . Piercing Weapon . | . . . . Special Melee Weapon . | . . . . Unidentified Prototypes . | . . . . Parts Lost . | . . . . Power . | . . . . Propulsion . | . . . . Utility . | . . . . Weapon . | . . . . Highest Loss Streak . | . . . . To Critical Strikes . | . . . . Average Slot Usage (%) 97 | . 100 100 77 Engine 13 | . 14 14 11 Treads 27 | . 28 28 22 Device 13 | . 14 14 11 Storage 13 | . 14 14 11 Energy Gun 26 | . 26 28 20 Peak Build Rating 8 | 7 7 8 8 Average Rating 7 | 4 7 7 8 On Entrance 5 | . 7 7 8 Naked Turns . | . . . . Heaviest Build 30 | 15 30 30 30 Greatest Support 40 | 40 40 40 40 Greatest Overweight (x) . | . . . . Average Overweight (x) . | . . . . Largest Inventory Capacity 15 | 8 15 15 15 Average Capacity 13 | 7 13 15 15 Most Carried 10 | 3 5 9 10 Average Carried 4 | . 3 7 9 Final Capacity 15 | 8 15 15 15 Final Carried 10 | 2 5 9 10 Class Distribution -------------------- 100% | Mutant Dominant Class ---------------- Mutant | -10/Materials Mutant | -10/Mines Mutant | -9/Materials Resources | -11 -10 -10 -9 ----------- Run | Yrd Mat Min Mat Matter Collected 310 | 169 121 20 . Remotely . | . . . . Salvage Created 294 | 27 175 . 92 Parts 33 | 5 19 . 9 Haulers Intercepted . | . . . . Recyclers Shooed . | . . . . Parts Field Recycled . | . . . . Retrieved Matter . | . . . . Parts Self-Destructed . | . . . . Prevented . | . . . . Kills | -11 -10 -10 -9 ------- Run | Yrd Mat Min Mat Combat Hostiles Destroyed 11 | . 5 . 6 Guns 5 | . 5 . . AOE 6 | . . . 6 Classes Destroyed 5 | 1 4 . . Tunneler 1 | 1 . . . Operator 1 | . 1 . . Watcher 2 | . 1 . 1 Swarmer 7 | . 3 . 4 Grunt 4 | . 2 . 2 Best Kill Streak 7 | 1 3 . 7 Combat Bots Only 6 | . 3 . 6 Max Kills in Single Turn 3 | 1 1 . 3 Gunslinging . | . . . . Exploded 2 | . . . 2 Melee . | . . . . Uniques/NPCs Destroyed . | . . . . Combat | -11 -10 -10 -9 -------- Run | Yrd Mat Min Mat Hostile Shots Fired 26 | . 13 . 13 Missed 7 | . 4 . 3 Damage Taken 225 | . 109 . 116 Core 52 | . 20 . 32 Absorbed by Shields . | . . . . Core Remaining (%) 96 | 100 . 92 . Volleys Fired 17 | 1 10 . 6 Largest 2 | 2 2 . 1 Hottest 80 | 80 80 . 30 Shots Fired 28 | 2 20 . 6 Gun 22 | 2 20 . . Cannon . | . . . . Launcher 6 | . . . 6 Special . | . . . . Kinetic . | . . . . Thermal . | . . . . Explosive 6 | . . . 6 Electromagnetic 22 | 2 20 . . Robot Hit Streak 6 | 1 6 . 3 Robot Miss Streak 2 | . 2 . 1 Penetration Max . | . . . . Secondary Targets . | . . . . Shots Hit Robots 15 | 1 11 . 3 Core Hits 23 | 1 10 . 12 Critical Kills . | . . . . Critical Parts Destroyed . | . . . . Critical Strikes 4 | . 4 . . Corrupt 4 | . 4 . . Melee Attacks 2 | . 2 . . Impact 2 | . 2 . . Slashing . | . . . . Piercing . | . . . . Sneak Attacks . | . . . . Combat Hostiles . | . . . . Follow-up Attacks . | . . . . Damage Inflicted 600 | 13 182 . 405 Guns 163 | 13 150 . . Cannons . | . . . . Explosions 437 | . 32 . 405 Melee . | . . . . Ramming . | . . . . Kinetic . | . . . . Thermal 32 | . 32 . . Explosive 301 | . . . 301 Electromagnetic 267 | 13 150 . 104 Impact . | . . . . Slashing . | . . . . Piercing . | . . . . Highest Corruption 1 | . 1 1 . Average Corruption 1 | . 1 1 . Corruption Purged . | . . . . Corruption Blocked . | . . . . Effects 4 | . 2 2 . Message Errors 1 | . . 1 . Heat Flow Errors 2 | . 2 . . Energy Discharges 1 | . . 1 . Overload Shots . | . . . . Overflow Damage . | . . . . Projectiles . | . . . . Explosions . | . . . . Melee . | . . . . Knockbacks . | . . . . Impact . | . . . . Kinetic . | . . . . Secondary . | . . . . Self-Inflicted Damage 55 | . 23 . 32 Shots 2 | . 1 . 1 Rammed . | . . . . Targets Rammed . | . . . . Kicked . | . . . . Crushed . | . . . . Highest Temperature 260 | 18 260 . . Average Temperature 66 | 12 68 . . Received Heat Transfer 63 | . 45 . 18 Siege Activations . | . . . . Robots Corrupted . | . . . . Combat Hostiles . | . . . . Parts Fried 2 | . 2 . . Impact Corruptions . | . . . . Robots Melted . | . . . . Combat Hostiles . | . . . . Parts Melted . | . . . . Heat Transferred . | . . . . Parts Sabotaged . | . . . . Parts Stolen . | . . . . Parts Stripped . | . . . . Power Chain Reactions 1 | . 1 . . Alert | -11 -10 -10 -9 ------- Run | Yrd Mat Min Mat Peak Influence 234 | 5 234 13 182 Initial 13 | . 3 13 4 Average 75 | 1 119 13 26 Maximum Alert Level 1 | . 1 . . Low Security (%) 88 | 100 81 100 100 Level 1 11 | . 18 . . Level 2 . | . . . . Level 3 . | . . . . Level 4 . | . . . . Level 5 . | . . . . High Security . | . . . . Max Security . | . . . . Squads Dispatched . | . . . . Investigation . | . . . . Extermination . | . . . . Reinforcement . | . . . . Assault . | . . . . Garrison . | . . . . Intercept . | . . . . Searches Triggered . | . . . . Construction Impeded . | . . . . Haulers Reinforced . | . . . . Active Scanning Responses . | . . . . Cargo Convoy Interrupts . | . . . . Stealth | -11 -10 -10 -9 --------- Run | Yrd Mat Min Mat Distress Signals 1 | . . . 1 Communications Jammed . | . . . . Distress Signals . | . . . . Times Spotted 16 | . 9 . 7 Peak Tracking Total 7 | . 3 . 7 Tactical Retreats . | . . . . Traps | -11 -10 -10 -9 ------- Run | Yrd Mat Min Mat Traps Triggered . | . . . . Indirectly . | . . . . Trap Hack Attempts . | . . . . Triggered . | . . . . Disarmed . | . . . . Reprogrammed . | . . . . Reused . | . . . . Traps Extracted . | . . . . Installed . | . . . . Triggered . | . . . . Machines | -11 -10 -10 -9 ---------- Run | Yrd Mat Min Mat Machines Disabled 4 | . 3 . 1 Max in Single Turn 2 | . 2 . 1 Machines Repaired . | . . . . Machines Dismantled . | . . . . Machines Sabotaged . | . . . . Overloaded Fab Kills . | . . . . Hacking | -11 -10 -10 -9 --------- Run | Yrd Mat Min Mat Machines Accessed 3 | . 3 . . Terminals 3 | . 3 . . Fabricators . | . . . . Repair Stations . | . . . . Recycling Units . | . . . . Scanalyzers . | . . . . Garrison Access . | . . . . Total Hacks 5 | . 5 . . Successful 1 | . 1 . . Failed 4 | . 4 . . Catastrophic 3 | . 3 . . Database Lockouts . | . . . . Manual . | . . . . Terminals 5 | . 5 . . Fabricators . | . . . . Repair Stations . | . . . . Recycling Units . | . . . . Scanalyzers . | . . . . Garrison Access . | . . . . Terminal Hacks 1 | . 1 . . Zone Layout 1 | . 1 . . Fabricator Hacks . | . . . . Repair Station Hacks . | . . . . Recycling Unit Hacks . | . . . . Scanalyzer . | . . . . Garrison Access Hacks . | . . . . Unauthorized Hacks . | . . . . Terminals . | . . . . Fabricators . | . . . . Repair Stations . | . . . . Recycling Units . | . . . . Scanalyzers . | . . . . Garrison Access . | . . . . Data Cores Recovered 1 | . 1 . . Used 1 | . 1 . . Hacking Detections 2 | . 2 . . Full Trace Events 1 | . 1 . . Feedback Events 1 | . 1 . . Corruption 1 | . 1 . . Feedback Blocked . | . . . . Robot Schematics Acquired . | . . . . Robots Built . | . . . . Authchips . | . . . . Time . | . . . . Total Robot Build Rating . | . . . . Part Schematics Acquired . | . . . . Parts Built . | . . . . Authchips . | . . . . Time . | . . . . Total Part Build Rating . | . . . . Parts Repaired . | . . . . Time . | . . . . Parts Recycled . | . . . . Recycled Matter . | . . . . Retrieved Matter . | . . . . Retrieved Components . | . . . . Parts Scanalyzed . | . . . . Part Schematics Acquired . | . . . . Parts Damaged . | . . . . Bothacking | -11 -10 -10 -9 ------------ Run | Yrd Mat Min Mat Used RIF Installer . | . . . . Robots Hacked . | . . . . Non-combat . | . . . . Combat . | . . . . Robot Hacks Applied . | . . . . Relay Couplers Released . | . . . . Fabnet Peak Effective % . | . . . . Robots Rewired . | . . . . Allies Hacked . | . . . . Hacks Repelled . | . . . . Allies | -11 -10 -10 -9 -------- Run | Yrd Mat Min Mat Total Allies . | . . . . Largest Group . | . . . . Highest-Rated Group . | . . . . Highest-Rated Ally . | . . . . Total Orders . | . . . . Ally Attacks . | . . . . Total Damage . | . . . . Kills . | . . . . Allies Corrupted . | . . . . Allies Melted . | . . . . Intel | -11 -10 -10 -9 ------- Run | Yrd Mat Min Mat Robot Analysis Total . | . . . . Derelict Logs Recovered 1 | . . 1 . Drone Launches . | . . . . Drone Recoveries . | . . . . Exploration | -11 -10 -10 -9 ------------- Run | Yrd Mat Min Mat Turns Passed 733 | 75 430 152 76 Spaces Moved 389 | 37 222 92 38 Core 1 | 1 . . . Treads 388 | 36 222 92 38 Legs . | . . . . Wheels . | . . . . Hover . | . . . . Flight . | . . . . Fastest Speed 50 | 50 160 160 160 Average Speed 159 | 157 160 160 160 Slowest Speed 160 | 160 160 160 160 Overloaded Moves . | . . . . Propulsion Burnouts . | . . . . Robots Hopped . | . . . . Cave-ins Triggered . | . . . . Exploration Rate (%) 23 | 4 53 30 8 Regions Visited 3 Branch Regions 1 Pre-discovered Areas . | . . . . Known Exits Taken . | . . . . Unknown Exits Taken 3 | 1 1 1 . Scrap Searched 1 | . . 1 . Spaces Dug 10 | . 1 . 9 Terrain Destroyed 18 | . 4 . 14 Melee 1 | . 1 . . Projectile . | . . . . AOE 17 | . 3 . 14 Terrain Rammed . | . . . . Walls Destroyed . | . . . . Machines Disabled . | . . . . Actions | -11 -10 -10 -9 --------- Run | Yrd Mat Min Mat Total 463 | 48 273 96 46 Wait 33 | . 33 . . Move 386 | 36 221 91 38 Hop . | . . . . Pick Up 12 | 3 4 4 1 Fast Attach 6 | 6 . . . Attach 1 | 1 . . . Detach . | . . . . Swap 5 | 1 2 1 1 Drop 1 | . 1 . . Fire 17 | 1 10 . 6 Melee 2 | . 2 . . Ram . | . . . . Kick . | . . . . Crush . | . . . . Escape Stasis . | . . . . Rewire . | . . . . Trap . | . . . . Miscellaneous . | . . . . Route ------- -11/Scrapyard -10/Materials (discovered 3 exits: *Mat x2 / [*Min]) -10/Mines -9/Materials (discovered 1 exit: Mat) History --------- Turn | Location | Event 38 | -11/Scrapyard | Discovered new exit (range 15) 76 | -11/Scrapyard | Entered Materials 242 | -10/Materials | Discovered new exit (range 12) 308 | -10/Materials | Build established: Mutant 390 | -10/Materials | Discovered new exit (range 5) 476 | -10/Materials | Discovered new exit (range 7) 506 | -10/Materials | Entered Mines 551 | -10/Mines | Found DCF Scrap (12 items) 590 | -10/Mines | Received a Rocket Launcher from a helpful Derelict 646 | -10/Mines | Discovered new exit (range 5) 651 | -10/Mines | Learned 2 Materials zone layouts 658 | -10/Mines | Entered Materials 658 | -9/Materials | Evolved 2 slots: Propulsion x1, Utility x1 659 | -9/Materials | Identified exit to Materials 734 | -9/Materials | Self-destructed Last Messages --------------- 00630_ ASEBNAPZQSU|9%GWPLVGIYR 00646_ EXIT=FOUND 00651_ Acquired derelict log, extracted data. Data stored: Materials zone layouts (x2). 00653_ System corrupted: Energy discharge (-82). PARAMETERS=PROPULSION+1,UTILITY+1 LOCATION=UNKNOWN GOAL=ESCAPE Loading 2 Materials zones... 00671_ Acquired Autogun. 00687_ Connecting with Terminal... 00687_ Current location identified: Materials 00717_ W-16 Scout sends out distress signal. 00722_ W-16 Scout destroyed. 00722_ S-10 Pest destroyed. 00724_ G-34 Mercenary destroyed. 00728_ S-10 Pest destroyed. 00729_ U-05 Engineer builds a Wall. 00732_ G-34 Mercenary destroyed. 00733_ U-05 Engineer lays Concrete. Map ----- +----------------------------------------------------+ | | | | | | | | | | | | | | | | | | | | | | | | | ?????????????????????????????????????????????????? | | ?????????????????????????????????????????????????? | | ??????????????????????????????????????######?????? | | ??????????????????????????????????????# T #?????? | | ????????????????????????????????????### #?????? | | ???????????????????????####?????????# + #?????? | | ???????????????????????+ ?????????# # #?????? | | ???????????????????????# ?????????# # #?????? | | ???????????????????????# ?????????# # #?????? | | ???????????????????????# ?????????# # #?????? | | ???????????????????????+ #???####### # #?????? | | ???????????????????????# #???# / #####?? | | ?????????????????##+#### ###?# #####+## #?? | | ????????????????# """ @ #### # # #?? | | ???????????????? "T" u + # ### | | ??????????????? ########## """ + | | ???????????? ????????# """ # ### | | ????????????##### ##???????#= """ # #?? | | ????????????????# #????????# # #?? | | ????????????????# * ????????######## #?? | | ????????????????# %* ???????????????# #?? | | ????????????????# [ ???????????????# #?? | | ????????????????# ##??????????????# #?? | | ????????????????# ??????????????? #?? | | ????????????????#[%! ??????????????? +?? | | #??????# #????# * ??????????????? #?? | | ######## ######?;#########???????????????###+#?? | | # # ????????????????????????????????? | | # # ????????????????????????????????? | | # "" # ????????????????????????????????? | | # T" # ????????????????????????????????? | | + "" # ????????????????????????????????? | | # # ????????????????????????????????? | | # ######????????????????????????????????? | | # """ ##?????????????????????????????????? | | # """ #?????????????????????????????????? | | # """ #?????????????????????????????????? | | # """ #?????????????????????????????????? | +----------------------------------------------------+ Best States ------------- Heat Dissipation 28 Energy Generation 10 Energy Capacity 250 Matter Stores 300 Matter Capacity 300 Sight Range 16 Terrain Scan Density 10 Evasion (%) 40 Recoil Reduction 2 Item Schematics ----------------- None Robot Schematics ------------------ None Fabricated ------------ Nothing Alien Tech Used ----------------- None Achievements -------------- None Challenges ------------ None Game ------ Seed ConstructMachineClaws Manual? 0 Play Time 00:06:46 Cumulative 137.8 hours Start 2025.03.10 @ 13:19:34 End 2025.03.11 @ 00:08:53 Sessions 3 Manual Loads 0 Difficulty Rogue Special Mode None Game No. 195 Rogue 195 Adventurer 0 Explorer 0 Win Type - Total 1 Types 1/0/0/0/0/0/0/0/0 Lore% 49 Gallery% 54 Achievement% 51 Wizard Run 0 Options --------- Layout 1 ASCII 0 Keyboard 0 Movement Mouse Keybinds 0 Fullscreen 2 Font 32/Smallcaps Map View 50x40 Zoom Use 0% Tactical HUD 1 Map Filters NONE Filters NONE Steam 1 RUN: e78e11e1-4fe8-4fa1-b5b8-a9199f03856f